[Event "Early-Titled-Tuesday-Blitz-April-16-2024"]
[Site "Chess.com"]
[Date "2024.04.16"]
[Round "1"]
[White "kuba2006"]
[Black "XDPS"]
[Result "1-0"]
[WhiteElo "2518"]
[BlackElo "2864"]
[TimeControl "180+1"]
[EndTime "8:07:57 PDT"]
[Termination "kuba2006 won on time"]

1. e4 {[%clk 0:03:00.9]} 1... c5 {[%clk 0:02:59.5]} 2. Nf3 {[%clk 0:02:59.8]}
2... e6 {[%clk 0:02:59]} 3. d4 {[%clk 0:02:59.7]} 3... cxd4 {[%clk 0:02:58.3]}
4. Nxd4 {[%clk 0:03:00.6]} 4... a6 {[%clk 0:02:58.5]} 5. Nc3 {[%clk 0:03:00.6]}
5... Qc7 {[%clk 0:02:58.1]} 6. Bd3 {[%clk 0:03:00.2]} 6... d6 {[%clk 0:02:55.9]}
7. O-O {[%clk 0:02:59.6]} 7... Nd7 {[%clk 0:02:56.6]} 8. Kh1 {[%clk 0:02:58.9]}
8... g6 {[%clk 0:02:54.9]} 9. f4 {[%clk 0:02:57.7]} 9... Bg7 {[%clk 0:02:55.1]}
10. Nb3 {[%clk 0:02:57.9]} 10... Ngf6 {[%clk 0:02:53.7]} 11. Bd2 {[%clk
0:02:56.2]} 11... O-O {[%clk 0:02:52.9]} 12. a4 {[%clk 0:02:55.3]} 12... b6
{[%clk 0:02:52.9]} 13. Qf3 {[%clk 0:02:54.7]} 13... Bb7 {[%clk 0:02:52.8]} 14.
Rae1 {[%clk 0:02:54.5]} 14... Rac8 {[%clk 0:02:51.3]} 15. Qh3 {[%clk 0:02:51.1]}
15... Rfe8 {[%clk 0:02:43.3]} 16. f5 {[%clk 0:02:41.7]} 16... Ne5 {[%clk
0:02:37.8]} 17. fxe6 {[%clk 0:02:41.1]} 17... fxe6 {[%clk 0:02:38]} 18. Nd4
{[%clk 0:02:40.4]} 18... Qe7 {[%clk 0:01:53]} 19. Bg5 {[%clk 0:02:33.1]} 19...
Nf7 {[%clk 0:01:52.5]} 20. Be3 {[%clk 0:02:20]} 20... Nd7 {[%clk 0:01:37.3]} 21.
Nf3 {[%clk 0:02:04.1]} 21... Nc5 {[%clk 0:01:33.2]} 22. Bd4 {[%clk 0:01:57.7]}
22... Ng5 {[%clk 0:01:26.6]} 23. Nxg5 {[%clk 0:01:47.3]} 23... Qxg5 {[%clk
0:01:26.6]} 24. Bxg7 {[%clk 0:01:46.4]} 24... Kxg7 {[%clk 0:01:26.7]} 25. Rf3
{[%clk 0:01:42.1]} 25... Rf8 {[%clk 0:01:20.8]} 26. Ref1 {[%clk 0:01:40.7]}
26... Rxf3 {[%clk 0:01:19.3]} 27. Qxf3 {[%clk 0:01:41.5]} 27... Qe7 {[%clk
0:01:17.3]} 28. b4 {[%clk 0:01:39.3]} 28... Nd7 {[%clk 0:01:12.6]} 29. Nd1
{[%clk 0:01:31.5]} 29... Rf8 {[%clk 0:01:07.1]} 30. Qe2 {[%clk 0:01:27.3]} 30...
Rxf1+ {[%clk 0:01:05.5]} 31. Qxf1 {[%clk 0:01:28.2]} 31... a5 {[%clk 0:01:06.1]}
32. bxa5 {[%clk 0:01:26.3]} 32... bxa5 {[%clk 0:01:07]} 33. Nb2 {[%clk
0:01:26.4]} 33... Nc5 {[%clk 0:01:06.3]} 34. Nc4 {[%clk 0:01:26.6]} 34... Qc7
{[%clk 0:00:58.5]} 35. e5 {[%clk 0:01:22.9]} 35... dxe5 {[%clk 0:00:57.4]} 36.
Qe1 {[%clk 0:01:08.9]} 36... e4 {[%clk 0:00:56.5]} 37. Be2 {[%clk 0:01:01]}
37... Kg8 {[%clk 0:00:37.1]} 38. Qxa5 {[%clk 0:00:57]} 38... Qxa5 {[%clk
0:00:24.7]} 39. Nxa5 {[%clk 0:00:57.9]} 39... Bd5 {[%clk 0:00:25.1]} 40. Bb5
{[%clk 0:00:48.1]} 40... e3 {[%clk 0:00:25.3]} 41. Kg1 {[%clk 0:00:47.7]} 41...
Be4 {[%clk 0:00:23.9]} 42. Nc4 {[%clk 0:00:42.5]} 42... Bxc2 {[%clk 0:00:20.1]}
43. a5 {[%clk 0:00:23.9]} 43... e2 {[%clk 0:00:19]} 44. Kf2 {[%clk 0:00:22.5]}
44... Bd1 {[%clk 0:00:19.2]} 45. Nd2 {[%clk 0:00:11.4]} 45... Ba4 {[%clk
0:00:08.6]} 46. Bxe2 {[%clk 0:00:11.4]} 46... Bc6 {[%clk 0:00:07.7]} 47. Nc4
{[%clk 0:00:10.4]} 47... Kf8 {[%clk 0:00:05.2]} 48. Ne5 {[%clk 0:00:09.3]} 48...
Bd5 {[%clk 0:00:05.3]} 49. a6 {[%clk 0:00:08.7]} 49... Ke7 {[%clk 0:00:05.1]}
50. a7 {[%clk 0:00:08.8]} 1-0

[Event "Early-Titled-Tuesday-Blitz-April-16-2024"]
[Site "Chess.com"]
[Date "2024.04.16"]
[Round "1"]
[White "HeroWilczek"]
[Black "ProtectiveCarrot"]
[Result "1/2-1/2"]
[WhiteElo "2598"]
[BlackElo "2289"]
[TimeControl "180+1"]
[EndTime "8:08:00 PDT"]
[Termination "Game drawn - insufficient material"]

1. e4 {[%clk 0:02:59.6]} 1... c6 {[%clk 0:02:58.6]} 2. b3 {[%clk 0:02:58.2]}
2... d5 {[%clk 0:02:59.5]} 3. exd5 {[%clk 0:02:54.9]} 3... cxd5 {[%clk
0:02:59.5]} 4. Bb2 {[%clk 0:02:55.7]} 4... Nc6 {[%clk 0:02:58.4]} 5. Ne2 {[%clk
0:02:55.9]} 5... e5 {[%clk 0:02:55.5]} 6. g3 {[%clk 0:02:56.1]} 6... Nf6 {[%clk
0:02:55.6]} 7. Bg2 {[%clk 0:02:56.6]} 7... Be7 {[%clk 0:02:52.2]} 8. O-O {[%clk
0:02:56.8]} 8... O-O {[%clk 0:02:52.7]} 9. d4 {[%clk 0:02:55.7]} 9... e4 {[%clk
0:02:46]} 10. c4 {[%clk 0:02:55.7]} 10... Bf5 {[%clk 0:02:33.5]} 11. Nbc3 {[%clk
0:02:53.4]} 11... dxc4 {[%clk 0:02:18.1]} 12. bxc4 {[%clk 0:02:54.3]} 12... Na5
{[%clk 0:02:13.9]} 13. Qa4 {[%clk 0:02:40.8]} 13... Bd7 {[%clk 0:02:13.3]} 14.
Qc2 {[%clk 0:02:30.8]} 14... Nxc4 {[%clk 0:02:10.4]} 15. Nxe4 {[%clk 0:02:30.2]}
15... Nxb2 {[%clk 0:02:10]} 16. Qxb2 {[%clk 0:02:27.8]} 16... Bc6 {[%clk
0:01:47.5]} 17. Nxf6+ {[%clk 0:02:22.4]} 17... Bxf6 {[%clk 0:01:48.4]} 18. Bxc6
{[%clk 0:02:20.2]} 18... bxc6 {[%clk 0:01:49.3]} 19. Rac1 {[%clk 0:02:20.3]}
19... Qd6 {[%clk 0:01:42]} 20. Rfd1 {[%clk 0:02:19]} 20... Rab8 {[%clk
0:01:26.7]} 21. Qc3 {[%clk 0:02:18.4]} 21... Rfe8 {[%clk 0:01:23.2]} 22. Nf4
{[%clk 0:02:15.7]} 22... Rb6 {[%clk 0:01:06.3]} 23. Nh5 {[%clk 0:01:35.5]} 23...
Bg5 {[%clk 0:01:00.9]} 24. Rb1 {[%clk 0:01:25.5]} 24... g6 {[%clk 0:00:54.8]}
25. Qa5 {[%clk 0:01:19.4]} 25... Rxb1 {[%clk 0:00:39.5]} 26. Rxb1 {[%clk
0:01:20.3]} 26... Qd5 {[%clk 0:00:40]} 27. Qxd5 {[%clk 0:01:02.7]} 27... cxd5
{[%clk 0:00:40.9]} 28. Nf4 {[%clk 0:01:03]} 28... Bxf4 {[%clk 0:00:40.9]} 29.
gxf4 {[%clk 0:01:03.9]} 29... Re4 {[%clk 0:00:38.7]} 30. Rb7 {[%clk 0:01:04.4]}
30... Rxf4 {[%clk 0:00:35.5]} 31. Rb4 {[%clk 0:01:01.7]} 31... Kg7 {[%clk
0:00:24.9]} 32. Kg2 {[%clk 0:01:01.6]} 32... g5 {[%clk 0:00:24.6]} 33. f3 {[%clk
0:01:01.5]} 33... Kg6 {[%clk 0:00:23.9]} 34. Ra4 {[%clk 0:00:58.5]} 34... h5
{[%clk 0:00:20.5]} 35. h3 {[%clk 0:00:55.6]} 35... f6 {[%clk 0:00:19.6]} 36. Kg3
{[%clk 0:00:52.9]} 36... Kf5 {[%clk 0:00:19.1]} 37. a3 {[%clk 0:00:47.5]} 37...
g4 {[%clk 0:00:17.6]} 38. hxg4+ {[%clk 0:00:46.5]} 38... hxg4 {[%clk 0:00:18.5]}
39. fxg4+ {[%clk 0:00:47.4]} 39... Rxg4+ {[%clk 0:00:19.2]} 40. Kf3 {[%clk
0:00:48.1]} 40... Rh4 {[%clk 0:00:19]} 41. Ra5 {[%clk 0:00:45.2]} 41... Rxd4
{[%clk 0:00:18.2]} 42. Rxa7 {[%clk 0:00:45.4]} 42... Rd3+ {[%clk 0:00:17.4]} 43.
Ke2 {[%clk 0:00:46]} 43... Ke4 {[%clk 0:00:16.8]} 44. a4 {[%clk 0:00:44.8]}
44... Ra3 {[%clk 0:00:16.4]} 45. a5 {[%clk 0:00:41.3]} 45... Ra2+ {[%clk
0:00:16.2]} 46. Kd1 {[%clk 0:00:42]} 46... d4 {[%clk 0:00:16.3]} 47. a6 {[%clk
0:00:41.9]} 47... Kd3 {[%clk 0:00:16.3]} 48. Kc1 {[%clk 0:00:41.9]} 48... f5
{[%clk 0:00:15.3]} 49. Rf7 {[%clk 0:00:41.1]} 49... Rxa6 {[%clk 0:00:14.7]} 50.
Rxf5 {[%clk 0:00:41.6]} 50... Kc3 {[%clk 0:00:14.8]} 51. Rc5+ {[%clk 0:00:41.1]}
51... Kd3 {[%clk 0:00:14.2]} 52. Rc8 {[%clk 0:00:38.4]} 52... Rb6 {[%clk
0:00:14.1]} 53. Rc7 {[%clk 0:00:37.9]} 53... Rb3 {[%clk 0:00:14.2]} 54. Rh7
{[%clk 0:00:34.9]} 54... Rb5 {[%clk 0:00:14.2]} 55. Rh3+ {[%clk 0:00:34.7]}
55... Kc4 {[%clk 0:00:14.8]} 56. Kc2 {[%clk 0:00:35.3]} 56... Rg5 {[%clk
0:00:15.2]} 57. Rh2 {[%clk 0:00:34.9]} 57... d3+ {[%clk 0:00:15]} 58. Kd2 {[%clk
0:00:35.2]} 58... Rg4 {[%clk 0:00:15.3]} 59. Rh8 {[%clk 0:00:34.6]} 59... Rg2+
{[%clk 0:00:14.9]} 60. Kd1 {[%clk 0:00:35]} 60... Kc3 {[%clk 0:00:12.3]} 61.
Rc8+ {[%clk 0:00:34.2]} 61... Kd4 {[%clk 0:00:12.9]} 62. Rd8+ {[%clk 0:00:34.2]}
62... Ke3 {[%clk 0:00:13.5]} 63. Re8+ {[%clk 0:00:34.8]} 63... Kf3 {[%clk
0:00:13.7]} 64. Rf8+ {[%clk 0:00:35.1]} 64... Kg3 {[%clk 0:00:13.3]} 65. Rg8+
{[%clk 0:00:35.1]} 65... Kf2 {[%clk 0:00:13.4]} 66. Rxg2+ {[%clk 0:00:35.9]}
66... Kxg2 {[%clk 0:00:13.6]} 67. Kd2 {[%clk 0:00:36.8]} 67... Kf3 {[%clk
0:00:14.1]} 68. Kxd3 {[%clk 0:00:37.7]} 1/2-1/2

[Event "Early-Titled-Tuesday-Blitz-April-16-2024"]
[Site "Chess.com"]
[Date "2024.04.16"]
[Round "1"]
[White "Vahe_Danielyan"]
[Black "NowInChess"]
[Result "1-0"]
[WhiteElo "2591"]
[BlackElo "2224"]
[TimeControl "180+1"]
[EndTime "8:08:01 PDT"]
[Termination "Vahe_Danielyan won by resignation"]

1. e4 {[%clk 0:03:00.9]} 1... e6 {[%clk 0:02:59.1]} 2. d3 {[%clk 0:03:00.7]}
2... d5 {[%clk 0:02:59.4]} 3. Nd2 {[%clk 0:03:01.6]} 3... Nf6 {[%clk 0:02:59.1]}
4. Ngf3 {[%clk 0:03:02]} 4... Nc6 {[%clk 0:02:59.1]} 5. g3 {[%clk 0:03:02.5]}
5... dxe4 {[%clk 0:02:57.1]} 6. dxe4 {[%clk 0:03:02.7]} 6... e5 {[%clk
0:02:57.7]} 7. Bg2 {[%clk 0:03:02.9]} 7... Bc5 {[%clk 0:02:57.9]} 8. O-O {[%clk
0:03:03.8]} 8... O-O {[%clk 0:02:56.9]} 9. c3 {[%clk 0:03:02.8]} 9... a5 {[%clk
0:02:56.5]} 10. Qe2 {[%clk 0:02:56.4]} 10... b6 {[%clk 0:02:55.4]} 11. Nc4
{[%clk 0:02:56.5]} 11... Ba6 {[%clk 0:02:53.7]} 12. b3 {[%clk 0:02:56.6]} 12...
Ne8 {[%clk 0:02:49.6]} 13. Bg5 {[%clk 0:02:54.9]} 13... f6 {[%clk 0:02:49]} 14.
Rfd1 {[%clk 0:02:53.9]} 14... Qe7 {[%clk 0:02:42.2]} 15. Be3 {[%clk 0:02:54.1]}
15... Bxe3 {[%clk 0:02:40]} 16. Qxe3 {[%clk 0:02:53.7]} 16... Bxc4 {[%clk
0:02:35.3]} 17. bxc4 {[%clk 0:02:54.6]} 17... Nd6 {[%clk 0:02:29.1]} 18. Bf1
{[%clk 0:02:53.4]} 18... Nb7 {[%clk 0:02:26.5]} 19. Nd2 {[%clk 0:02:49.3]} 19...
Rfd8 {[%clk 0:02:21.8]} 20. c5 {[%clk 0:02:38]} 20... Nxc5 {[%clk 0:02:13]} 21.
Bc4+ {[%clk 0:02:37.9]} 21... Kh8 {[%clk 0:02:13.4]} 22. Bd5 {[%clk 0:02:38.4]}
22... Qe8 {[%clk 0:02:05.5]} 23. Nf3 {[%clk 0:02:26.5]} 23... Rab8 {[%clk
0:02:04.1]} 24. Nh4 {[%clk 0:02:20.1]} 24... Ne7 {[%clk 0:02:02.9]} 25. Bc4
{[%clk 0:02:15.6]} 25... c6 {[%clk 0:02:00]} 26. Qf3 {[%clk 0:02:13.5]} 26...
Rxd1+ {[%clk 0:01:52]} 27. Rxd1 {[%clk 0:02:12.8]} 27... Rd8 {[%clk 0:01:52]}
28. Rxd8 {[%clk 0:02:03.6]} 28... Qxd8 {[%clk 0:01:52.9]} 29. Kg2 {[%clk
0:02:02]} 29... b5 {[%clk 0:01:50.3]} 30. Be2 {[%clk 0:02:00.2]} 30... Qd2
{[%clk 0:01:42.4]} 31. Qh5 {[%clk 0:01:53.2]} 31... g6 {[%clk 0:01:41.1]} 32.
Qf3 {[%clk 0:01:53.2]} 32... Kg7 {[%clk 0:01:36.5]} 33. Bf1 {[%clk 0:01:43.7]}
33... Qc2 {[%clk 0:01:35.1]} 34. Kg1 {[%clk 0:01:39.4]} 34... Qxe4 {[%clk
0:01:33.5]} 35. Qd1 {[%clk 0:01:39.2]} 35... Qd5 {[%clk 0:01:28.4]} 36. Qc1
{[%clk 0:01:36.2]} 36... Nd3 {[%clk 0:01:19.1]} 37. Qc2 {[%clk 0:01:33.2]} 37...
Ne1 {[%clk 0:01:11.8]} 38. Qe2 {[%clk 0:01:31.8]} 38... g5 {[%clk 0:00:57.8]}
39. Qxe1 {[%clk 0:01:30.3]} 39... gxh4 {[%clk 0:00:58.1]} 40. Bg2 {[%clk
0:01:30.5]} 40... Qxa2 {[%clk 0:00:52.9]} 41. Qd1 {[%clk 0:01:22.5]} 41... Qe6
{[%clk 0:00:50.4]} 42. gxh4 {[%clk 0:01:21.7]} 42... Ng6 {[%clk 0:00:49.2]} 43.
Qd8 {[%clk 0:01:12.3]} 43... Nxh4 {[%clk 0:00:41.5]} 44. Qc7+ {[%clk 0:01:09]}
44... Kh6 {[%clk 0:00:39.1]} 45. h3 {[%clk 0:00:54.2]} 45... Nxg2 {[%clk
0:00:32.7]} 46. Kxg2 {[%clk 0:00:55.1]} 46... a4 {[%clk 0:00:29.8]} 47. Qb8
{[%clk 0:00:52.7]} 47... Qe7 {[%clk 0:00:25.7]} 48. Qa8 {[%clk 0:00:51.4]} 48...
a3 {[%clk 0:00:25.1]} 49. Qxc6 {[%clk 0:00:49.9]} 49... a2 {[%clk 0:00:23.4]}
50. Qa6 {[%clk 0:00:48.7]} 50... Qc5 {[%clk 0:00:13.8]} 51. Qxf6+ {[%clk
0:00:47.8]} 51... Kh5 {[%clk 0:00:13.2]} 52. Qf5+ {[%clk 0:00:48.4]} 52... Kh6
{[%clk 0:00:13.8]} 53. Qf6+ {[%clk 0:00:48.5]} 53... Kh5 {[%clk 0:00:14.4]} 54.
h4 {[%clk 0:00:49.2]} 54... Qd5+ {[%clk 0:00:13.1]} 55. Kh2 {[%clk 0:00:49.3]}
55... Qd2 {[%clk 0:00:11.7]} 56. Qxe5+ {[%clk 0:00:46.2]} 56... Kxh4 {[%clk
0:00:10.7]} 57. Qg3+ {[%clk 0:00:41.1]} 57... Kh5 {[%clk 0:00:10.9]} 58. Qf3+
{[%clk 0:00:38.7]} 58... Kg6 {[%clk 0:00:10.4]} 59. Qc6+ {[%clk 0:00:38.4]}
59... Kf5 {[%clk 0:00:10]} 60. Qxb5+ {[%clk 0:00:38.7]} 60... Ke4 {[%clk
0:00:08]} 61. Qa4+ {[%clk 0:00:36.8]} 61... Kd3 {[%clk 0:00:06.7]} 62. Qa6+
{[%clk 0:00:37.3]} 62... Kxc3 {[%clk 0:00:06.6]} 63. Qa5+ {[%clk 0:00:38]} 63...
Kc2 {[%clk 0:00:06.5]} 64. Qxa2+ {[%clk 0:00:38.6]} 64... Kd1 {[%clk 0:00:06.3]}
65. Qxd2+ {[%clk 0:00:38.3]} 65... Kxd2 {[%clk 0:00:06.5]} 66. f4 {[%clk
0:00:39.2]} 66... Ke3 {[%clk 0:00:06.5]} 67. f5 {[%clk 0:00:40.1]} 67... Kf4
{[%clk 0:00:04.5]} 68. f6 {[%clk 0:00:41]} 1-0

[Event "Early-Titled-Tuesday-Blitz-April-16-2024"]
[Site "Chess.com"]
[Date "2024.04.16"]
[Round "1"]
[White "Alexei_Gubajdullin"]
[Black "ViktoriyaTarasova"]
[Result "1/2-1/2"]
[WhiteElo "2631"]
[BlackElo "2346"]
[TimeControl "180+1"]
[EndTime "8:08:02 PDT"]
[Termination "Game drawn by repetition"]

1. Nf3 {[%clk 0:02:57.4]} 1... Nf6 {[%clk 0:02:59.5]} 2. g3 {[%clk 0:02:57.4]}
2... b6 {[%clk 0:02:59.4]} 3. Bg2 {[%clk 0:02:58.3]} 3... Bb7 {[%clk 0:02:59.9]}
4. O-O {[%clk 0:02:59]} 4... c5 {[%clk 0:03:00.3]} 5. c4 {[%clk 0:02:58.9]} 5...
e6 {[%clk 0:03:00.3]} 6. b3 {[%clk 0:02:58.9]} 6... Be7 {[%clk 0:02:59.7]} 7.
Bb2 {[%clk 0:02:58.8]} 7... O-O {[%clk 0:03:00.4]} 8. Nc3 {[%clk 0:02:59.2]}
8... Na6 {[%clk 0:02:47.7]} 9. e3 {[%clk 0:02:58.2]} 9... d5 {[%clk 0:02:43.1]}
10. Qe2 {[%clk 0:02:56.6]} 10... d4 {[%clk 0:02:29.8]} 11. exd4 {[%clk
0:02:51.5]} 11... cxd4 {[%clk 0:02:29.8]} 12. Nb5 {[%clk 0:02:52.4]} 12... d3
{[%clk 0:02:28]} 13. Qe5 {[%clk 0:02:46.9]} 13... Nc5 {[%clk 0:02:14.8]} 14.
Nfd4 {[%clk 0:02:46.4]} 14... Bxg2 {[%clk 0:02:12]} 15. Kxg2 {[%clk 0:02:45.7]}
15... Qc8 {[%clk 0:02:10.8]} 16. Nd6 {[%clk 0:02:33.7]} 16... Qb8 {[%clk
0:01:26.3]} 17. N4f5 {[%clk 0:02:24.5]} 17... Bxd6 {[%clk 0:01:03.4]} 18. Nxd6
{[%clk 0:02:22.2]} 18... Rd8 {[%clk 0:01:02.1]} 19. Nb5 {[%clk 0:02:11.7]} 19...
a6 {[%clk 0:00:35.9]} 20. Qxb8 {[%clk 0:01:57.4]} 20... Raxb8 {[%clk 0:00:35.3]}
21. Bxf6 {[%clk 0:01:51.9]} 21... gxf6 {[%clk 0:00:34.4]} 22. Nc3 {[%clk
0:01:52.8]} 22... f5 {[%clk 0:00:31.8]} 23. Rfe1 {[%clk 0:01:51.6]} 23... b5
{[%clk 0:00:31.9]} 24. cxb5 {[%clk 0:01:50]} 24... axb5 {[%clk 0:00:32.6]} 25.
Rac1 {[%clk 0:01:50.6]} 25... b4 {[%clk 0:00:29.8]} 26. Nd1 {[%clk 0:01:48.8]}
26... Rdc8 {[%clk 0:00:29.5]} 27. Nb2 {[%clk 0:01:36.8]} 27... f6 {[%clk
0:00:27.3]} 28. Rc4 {[%clk 0:01:35.1]} 28... Ne4 {[%clk 0:00:22]} 29. Rxc8+
{[%clk 0:01:31.2]} 29... Rxc8 {[%clk 0:00:22.2]} 30. Nxd3 {[%clk 0:01:32.1]}
30... Rc2 {[%clk 0:00:18.5]} 31. Nxb4 {[%clk 0:01:28.1]} 31... Rxd2 {[%clk
0:00:18.3]} 32. Rf1 {[%clk 0:01:29]} 32... Nc3 {[%clk 0:00:09.8]} 33. a4 {[%clk
0:01:24.3]} 33... Rb2 {[%clk 0:00:09.6]} 34. Ra1 {[%clk 0:01:16.9]} 34... Rxb3
{[%clk 0:00:09.2]} 35. Nc6 {[%clk 0:01:15.9]} 35... Rb6 {[%clk 0:00:07.8]} 36.
Nd4 {[%clk 0:01:14.6]} 36... Kf7 {[%clk 0:00:07.3]} 37. a5 {[%clk 0:01:12.6]}
37... Ra6 {[%clk 0:00:07.9]} 38. Nb3 {[%clk 0:01:11.1]} 38... Nd5 {[%clk
0:00:06.9]} 39. Nc5 {[%clk 0:01:10.9]} 39... Ra7 {[%clk 0:00:07.6]} 40. a6
{[%clk 0:01:11.2]} 40... Ke7 {[%clk 0:00:06.3]} 41. Rb1 {[%clk 0:01:10.1]} 41...
Kd6 {[%clk 0:00:06.7]} 42. Rb7 {[%clk 0:01:09.8]} 42... Ra8 {[%clk 0:00:07]} 43.
Nd3 {[%clk 0:00:59.3]} 43... Rxa6 {[%clk 0:00:07.1]} 44. Rxh7 {[%clk 0:00:59.3]}
44... Ra2 {[%clk 0:00:07.7]} 45. h4 {[%clk 0:00:58.6]} 45... Ne3+ {[%clk
0:00:07.9]} 46. Kg1 {[%clk 0:00:50.4]} 46... Ng4 {[%clk 0:00:07.4]} 47. h5
{[%clk 0:00:46.6]} 47... Rd2 {[%clk 0:00:07.4]} 48. Rh8 {[%clk 0:00:44.3]} 48...
Ke7 {[%clk 0:00:06.6]} 49. h6 {[%clk 0:00:40.3]} 49... Nxh6 {[%clk 0:00:03.5]}
50. Rh7+ {[%clk 0:00:39.2]} 50... Kd6 {[%clk 0:00:02.5]} 51. Rxh6 {[%clk
0:00:22.4]} 51... Rxd3 {[%clk 0:00:02.8]} 52. Rxf6 {[%clk 0:00:23.3]} 52... Rd1+
{[%clk 0:00:03.3]} 53. Kg2 {[%clk 0:00:23.2]} 53... Ke7 {[%clk 0:00:04]} 54. Rh6
{[%clk 0:00:23.4]} 54... Rd2 {[%clk 0:00:04.5]} 55. Kf3 {[%clk 0:00:23.3]} 55...
Kf7 {[%clk 0:00:04.9]} 56. Rh7+ {[%clk 0:00:23.2]} 56... Kf6 {[%clk 0:00:04.4]}
57. Rh6+ {[%clk 0:00:23.2]} 57... Kf7 {[%clk 0:00:04.4]} 58. Rh8 {[%clk
0:00:22.7]} 58... Kf6 {[%clk 0:00:04.4]} 59. Rh6+ {[%clk 0:00:21.9]} 59... Kf7
{[%clk 0:00:04.7]} 1/2-1/2

[Event "Early-Titled-Tuesday-Blitz-April-16-2024"]
[Site "Chess.com"]
[Date "2024.04.16"]
[Round "1"]
[White "vasblesk"]
[Black "DvaHrasta"]
[Result "1-0"]
[WhiteElo "2822"]
[BlackElo "2466"]
[TimeControl "180+1"]
[EndTime "8:08:03 PDT"]
[Termination "vasblesk won on time"]

1. d4 {[%clk 0:02:59.9]} 1... Nf6 {[%clk 0:02:59.2]} 2. c4 {[%clk 0:03:00]} 2...
e6 {[%clk 0:02:59.3]} 3. Nf3 {[%clk 0:03:00.7]} 3... Bb4+ {[%clk 0:02:58.5]} 4.
Bd2 {[%clk 0:03:00.5]} 4... Be7 {[%clk 0:02:57.8]} 5. g3 {[%clk 0:03:00]} 5...
O-O {[%clk 0:02:57.1]} 6. Bg2 {[%clk 0:03:00.5]} 6... d5 {[%clk 0:02:57.3]} 7.
O-O {[%clk 0:03:01]} 7... c6 {[%clk 0:02:57.4]} 8. Qc2 {[%clk 0:03:00.7]} 8...
a5 {[%clk 0:02:56.8]} 9. Rd1 {[%clk 0:02:59.7]} 9... b6 {[%clk 0:02:56.5]} 10.
Bf4 {[%clk 0:02:59.7]} 10... Nbd7 {[%clk 0:02:53.2]} 11. Ne5 {[%clk 0:02:59.4]}
11... Nxe5 {[%clk 0:02:51.7]} 12. dxe5 {[%clk 0:02:54.1]} 12... Nd7 {[%clk
0:02:49.1]} 13. cxd5 {[%clk 0:02:46.7]} 13... cxd5 {[%clk 0:02:48.7]} 14. e4
{[%clk 0:02:46.5]} 14... d4 {[%clk 0:02:23.8]} 15. Rxd4 {[%clk 0:02:45.2]} 15...
Ba6 {[%clk 0:02:00.5]} 16. Qd1 {[%clk 0:02:34.3]} 16... Ra7 {[%clk 0:01:59.6]}
17. Nc3 {[%clk 0:02:33.2]} 17... Rc7 {[%clk 0:01:49.8]} 18. h4 {[%clk
0:02:26.9]} 18... h6 {[%clk 0:01:46.8]} 19. h5 {[%clk 0:02:26.1]} 19... Qc8
{[%clk 0:01:45.4]} 20. a3 {[%clk 0:02:10.4]} 20... Rd8 {[%clk 0:01:42.1]} 21.
Rd2 {[%clk 0:01:56.9]} 21... Bc4 {[%clk 0:01:29.1]} 22. Qg4 {[%clk 0:01:54.1]}
22... Kf8 {[%clk 0:01:25.8]} 23. Rad1 {[%clk 0:01:53.2]} 23... Nc5 {[%clk
0:01:21]} 24. Rxd8+ {[%clk 0:01:46.7]} 24... Bxd8 {[%clk 0:01:20.7]} 25. Rd6
{[%clk 0:01:44.1]} 25... b5 {[%clk 0:01:10.6]} 26. Be3 {[%clk 0:00:52.8]} 26...
Nd3 {[%clk 0:01:01.2]} 27. Qd1 {[%clk 0:00:51.6]} 27... Be7 {[%clk 0:00:53.8]}
28. Rxd3 {[%clk 0:00:49.6]} 28... Bxd3 {[%clk 0:00:52.4]} 29. Qxd3 {[%clk
0:00:50.5]} 29... b4 {[%clk 0:00:44.6]} 30. axb4 {[%clk 0:00:49.8]} 30... axb4
{[%clk 0:00:44.4]} 31. Nb5 {[%clk 0:00:50.3]} 31... Rc2 {[%clk 0:00:39.4]} 32.
b3 {[%clk 0:00:41.9]} 32... Rb2 {[%clk 0:00:31.2]} 33. Nd4 {[%clk 0:00:37.9]}
33... Qc3 {[%clk 0:00:22.5]} 34. Qb5 {[%clk 0:00:36.7]} 34... Kg8 {[%clk
0:00:20.2]} 35. Qe8+ {[%clk 0:00:19.2]} 35... Bf8 {[%clk 0:00:18.8]} 36. Kh2
{[%clk 0:00:18.4]} 36... Rb1 {[%clk 0:00:15.8]} 37. g4 {[%clk 0:00:09.5]} 37...
Re1 {[%clk 0:00:12.9]} 38. Qd8 {[%clk 0:00:06.3]} 38... Rxe3 {[%clk 0:00:12.4]}
39. fxe3 {[%clk 0:00:06.6]} 39... Qxe3 {[%clk 0:00:12.5]} 40. Bf3 {[%clk
0:00:04.7]} 40... Qf2+ {[%clk 0:00:11.2]} 41. Kh3 {[%clk 0:00:05.3]} 41... Qf1+
{[%clk 0:00:11.3]} 42. Kg3 {[%clk 0:00:06]} 42... Qe1+ {[%clk 0:00:11.4]} 43.
Kg2 {[%clk 0:00:05.5]} 43... Qd2+ {[%clk 0:00:11]} 44. Kf1 {[%clk 0:00:06.1]}
44... Qc1+ {[%clk 0:00:10.2]} 45. Ke2 {[%clk 0:00:06.7]} 45... Qb2+ {[%clk
0:00:09.6]} 46. Kd1 {[%clk 0:00:06.7]} 46... Qb1+ {[%clk 0:00:09.1]} 47. Ke2
{[%clk 0:00:06.6]} 47... Qb2+ {[%clk 0:00:09.1]} 48. Ke1 {[%clk 0:00:07.2]}
48... Qc3+ {[%clk 0:00:08.1]} 49. Kd1 {[%clk 0:00:03.9]} 49... Qa1+ {[%clk
0:00:07.2]} 50. Kc2 {[%clk 0:00:04.3]} 50... Qa2+ {[%clk 0:00:06.1]} 51. Kd3
{[%clk 0:00:04.4]} 51... Qb1+ {[%clk 0:00:05.8]} 52. Kc4 {[%clk 0:00:05]} 52...
Qc2+ {[%clk 0:00:05.6]} 53. Nxc2 {[%clk 0:00:04.2]} 1-0